fUST/lending_fUST_20240922
["ID","MTS","AMOUNT","RATE_DAILY","PERIOD"]
[338838295,1726935053904,-681.628656,0.00016177,2]
[338838297,1726935053915,-1405.047675,0.00016177,2]
[338838299,1726935053925,-170.666025,0.00016177,2]
[338838302,1726935053934,-466.813732,0.00016177,2]
[338838304,1726935053944,-171.648426,0.00016177,2]
[338838305,1726935053955,-167.490248,0.00016177,2]
[338838307,1726935053965,-154.483583,0.00016177,2]
[338838310,1726935053975,-251.235372,0.00016177,2]
[338838312,1726935053985,-299.477044,0.0001618,2]
[338838313,1726935053994,-151.0,0.0001618,2]
[338838316,1726935054004,-3000.0,0.0001618,30]
[338838318,1726935054014,-3000.0,0.0001618,2]
[338838320,1726935054025,-3000.0,0.0001619,30]
[338838322,1726935054035,-3000.0,0.0001619,2]
[338838324,1726935054047,-151.0,0.000162,2]
[338838326,1726935054058,-3000.0,0.000162,30]
[338838328,1726935054067,-3000.0,0.000162,2]
[338838330,1726935054077,-151.0,0.000162,2]
[338838332,1726935054087,-1135.135034,0.000162,2]
[338838334,1726935054096,-1135.135034,0.000162,2]
[338838336,1726935054106,-2438.641325,0.000162,2]
[338838338,1726935054115,-2438.641325,0.000162,2]
[338838340,1726935054125,-1042.941734,0.000162,2]
[338838342,1726935054135,-1042.941734,0.000162,2]
[338838344,1726935054145,-3305.203623,0.000162,2]
[338838346,1726935054154,-3305.203617,0.000162,2]
[338838348,1726935054164,-486.4796,0.000162,2]
[338838350,1726935054174,-486.479592,0.000162,2]
[338838352,1726935054184,-531.49473455,0.000162,2]
[338838354,1726935054194,-461.754562,0.000162,2]
[338838356,1726935054204,-461.75456,0.000162,2]
[338838358,1726935054213,-500.0,0.000162,2]
[338838360,1726935054225,-2977.66215,0.000162,2]
[338838362,1726935054234,-8222.04,0.000162,2]
[338838364,1726935054244,-2977.662148,0.000162,2]
[338838366,1726935054254,-1279.6,0.000162,2]
[338838368,1726935054263,-2321.436138,0.000162,2]
[338838370,1726935054273,-533.59,0.00016201,2]
[338838372,1726935054282,-494.197713,0.00016201,2]
[338838374,1726935054293,-494.197713,0.00016201,2]
[338838376,1726935054302,-4453.875714,0.00016201,2]
[338838378,1726935054311,-4453.875714,0.00016201,2]
[338838380,1726935054322,-151.0,0.00016201,2]
[338838382,1726935054331,-902.97813,0.00016201,2]
[338838384,1726935054341,-500.0,0.00016209,2]
[338838386,1726935054351,-500.0,0.00016209,2]
[338838388,1726935054361,-500.0,0.00016209,2]
[338838390,1726935054371,-500.0,0.00016209,2]
[338838392,1726935054381,-236.927647,0.00016209,2]
[338838394,1726935054390,-236.927644,0.00016209,2]
[338838396,1726935054400,-500.0,0.00016209,2]
[338838398,1726935054410,-168.80439,0.0001621,2]
[338838400,1726935054420,-168.80439,0.0001621,2]
[338838402,1726935054429,-151.0,0.0001621,2]
[338838404,1726935054439,-151.0,0.0001621,2]
[338838406,1726935054448,-500.0,0.0001621,2]
[338838408,1726935054458,-170.946703,0.0001621,2]
[338838410,1726935054468,-170.946703,0.0001621,2]
[338838412,1726935054478,-4087.484948,0.0001621,2]
[338838414,1726935054487,-151.0,0.0001621,2]
[338838416,1726935054496,-4087.484948,0.0001621,2]
[338838418,1726935054506,-551.12,0.0001621,2]
[338838420,1726935054516,-464.773232,0.0001621,2]
[338838422,1726935054525,-464.773232,0.0001621,2]
[338838424,1726935054535,-151.0,0.0001621,2]
[338838426,1726935054545,-2386.960535,0.0001621,2]
[338838428,1726935054555,-2386.960535,0.0001621,2]
[338838430,1726935054565,-3000.0,0.0001621,30]
[338838432,1726935054575,-3000.0,0.0001621,2]
[338838435,1726935054584,-1675.280556,0.0001621,2]
[338838437,1726935054594,-500.0,0.0001621,2]
[338838439,1726935054603,-1675.280556,0.0001621,2]
[338838441,1726935054613,-859.264866,0.0001621,2]
[338838443,1726935054622,-859.264866,0.0001621,2]
[338838445,1726935054632,-151.0,0.0001621,2]
[338838447,1726935054641,-164.401135,0.0001621,2]
[338838449,1726935054650,-1672.5051,0.0001621,2]
[338838451,1726935054660,-1672.5051,0.0001621,2]
[338838453,1726935054670,-793.34,0.0001621,2]
[338838455,1726935054680,-643.020074,0.0001621,2]
[338838457,1726935054692,-643.020074,0.0001621,2]
[338838459,1726935054702,-417.003662,0.0001621,2]
[338838461,1726935054711,-417.003662,0.0001621,2]
[338838463,1726935054721,-500.0,0.0001621,2]
[338838465,1726935054732,-500.0,0.0001621,2]
[338838467,1726935054742,-151.0,0.00016211,2]
[338838469,1726935054751,-151.0,0.00016211,2]
[338838471,1726935054762,-672.298221,0.00016211,2]
[338838473,1726935054772,-672.298221,0.00016211,2]
[338838475,1726935054782,-201.564278,0.00016211,2]
[338838477,1726935054792,-201.564278,0.00016211,2]
[338838479,1726935054802,-500.0,0.00016211,2]
[338838494,1726935054925,-584.33,0.00016211,2]
[338838496,1726935054949,-500.0,0.00016211,2]
[338838498,1726935054959,-500.0,0.00016211,2]
[338838500,1726935054968,-500.0,0.00016211,2]
[338838502,1726935054977,-196.01110269,0.00016211,2]
[338838504,1726935054986,-500.0,0.00016211,2]
[338838506,1726935054995,-500.0,0.00016211,2]
[338838508,1726935055004,-650.7,0.00016211,2]
[338838510,1726935055013,-500.0,0.00016211,2]
[338838512,1726935055022,-1232.259039,0.00016211,2]
[338838514,1726935055031,-1232.259039,0.00016211,2]
[338838516,1726935055041,-1617.74603,0.00016211,2]
[338838518,1726935055050,-1617.74603,0.00016211,2]
[338838520,1726935055059,-231.627965,0.00016211,2]
[338838522,1726935055068,-231.627965,0.00016211,2]
[338838524,1726935055078,-273.681652,0.00016211,2]
[338838526,1726935055087,-273.681652,0.00016211,2]
[338838528,1726935055096,-151.0,0.00016212,2]
[338838530,1726935055105,-239.239047,0.00016212,2]
[338838532,1726935055114,-729.398876,0.00016212,2]
[338838534,1726935055123,-729.398876,0.00016212,2]
[338838536,1726935055134,-3000.0,0.0001622,30]
[338838538,1726935055143,-3000.0,0.0001622,2]
[338838540,1726935055152,-151.0,0.0001623,2]
[338838542,1726935055161,-245.377021,0.0001623,2]
[338838543,1726935055170,-245.377021,0.0001623,2]
[338838545,1726935055179,-151.0,0.0001623,2]
[338838547,1726935055188,-151.0,0.0001623,2]
[338838549,1726935055197,-299.223146,0.0001623,2]
[338838551,1726935055205,-299.223146,0.0001623,2]
[338838553,1726935055215,-419.868945,0.0001623,2]
[338838555,1726935055223,-419.868945,0.0001623,2]
[338838557,1726935055232,-3000.0,0.0001623,30]
[338838559,1726935055241,-3000.0,0.0001623,2]
[338838561,1726935055251,-4453.875714,0.0001623,2]
[338838562,1726935055260,-4453.875714,0.0001623,2]
[338838564,1726935055269,-1804.320139,0.0001624,2]
[338838566,1726935055279,-1804.320139,0.0001624,2]
[338838569,1726935055288,-494.197713,0.0001624,2]
[338838571,1726935055299,-494.197713,0.0001624,2]
[338838573,1726935055309,-3000.0,0.0001624,30]
[338838575,1726935055318,-3000.0,0.0001624,2]
[338838577,1726935055327,-151.0,0.0001624,2]
[338838579,1726935055337,-1135.135034,0.0001624,2]
[338838581,1726935055346,-1135.135039,0.0001624,2]
[338838583,1726935055355,-2438.641325,0.0001624,2]
[338838585,1726935055365,-2438.641327,0.0001624,2]
[338838587,1726935055375,-1042.941734,0.0001624,2]
[338838589,1726935055383,-1042.941726,0.0001624,2]
[338838591,1726935055392,-171.869248,0.0001625,2]
[338838593,1726935055401,-171.869248,0.0001625,2]
[338838594,1726935055410,-3794.284564,0.0001625,30]
[338838595,1726935055419,-3000.0,0.0001625,2]
[338838596,1726935055428,-208.8866586,0.00016251,2]
[338838597,1726935055437,-206.649101,0.00016251,2]
[338838598,1726935055446,-208.8866586,0.00016251,2]
[338838599,1726935055456,-417.7244511,0.00016251,2]
[338838601,1726935055466,-208.8866586,0.00016251,2]
[338838603,1726935055476,-208.8866586,0.00016251,2]
[338838605,1726935055485,-170.946703,0.0001626,2]
[338838608,1726935055494,-170.946703,0.0001626,2]
[338838609,1726935055503,-151.0,0.0001626,2]
[338838611,1726935055512,-464.773232,0.0001626,2]
[338838613,1726935055521,-464.773232,0.0001626,2]
[338838615,1726935055530,-151.0,0.0001626,2]
[338838617,1726935055540,-2386.960535,0.0001626,2]
[338838619,1726935055550,-2386.960535,0.0001626,2]
[338838621,1726935055559,-3000.0,0.0001626,2]
[338838623,1726935055567,-4453.875714,0.0001626,2]
[338838625,1726935055577,-4453.875714,0.0001626,2]
[338838627,1726935055586,-1675.280556,0.0001626,2]
[338838629,1726935055596,-1675.280556,0.0001626,2]
[338838631,1726935055605,-152.050946,0.0001626,2]
[338838632,1726935055614,-902.97813,0.0001626,2]
[338838634,1726935055623,-902.978139,0.0001626,2]
[338838636,1726935055633,-168.80439,0.0001627,2]
[338838638,1726935055642,-168.80439,0.0001627,2]
[338838640,1726935055650,-151.0,0.0001627,2]
[338838642,1726935055659,-209.599444,0.0001627,2]
[338838644,1726935055669,-4087.484948,0.0001627,2]
[338838646,1726935055679,-4087.484948,0.0001627,2]
[338838648,1726935055691,-3000.0,0.0001627,2]
[338838650,1726935055701,-500.0,0.00016273,2]
[338838652,1726935055709,-3000.0,0.0001628,2]
[338838653,1726935055718,-151.0,0.0001629,2]
[338838655,1726935055729,-151.0,0.0001629,2]
[338838657,1726935055738,-151.0,0.0001629,2]
[338838659,1726935055747,-1006.018976,0.0001629,2]
[338838661,1726935055756,-1006.018976,0.0001629,2]
[338838663,1726935055767,-151.0,0.0001629,2]
[338838665,1726935055778,-151.0,0.0001629,2]
[338838667,1726935055787,-151.0,0.0001629,2]
[338838669,1726935055797,-151.0,0.0001629,2]
[338838671,1726935055806,-151.0,0.0001629,2]
[338838673,1726935055815,-225.096237,0.0001629,2]
[338838675,1726935055824,-225.096237,0.0001629,2]
[338838677,1726935055834,-3000.0,0.0001629,2]
[338838679,1726935055843,-806.533132,0.0001629,2]
[338838681,1726935055852,-806.533132,0.0001629,2]
[338838683,1726935055861,-962.595507,0.0001629,2]
[338838685,1726935055871,-962.595507,0.0001629,2]
[338838687,1726935055880,-859.264866,0.0001629,2]
[338838689,1726935055889,-859.264856,0.0001629,2]
[338838691,1726935055899,-151.0,0.0001629,2]
[338838693,1726935055908,-1672.5051,0.0001629,2]
[338838695,1726935055917,-1672.505108,0.0001629,2]
[338838697,1726935055927,-643.020074,0.0001629,2]
[338838699,1726935055937,-643.020081,0.0001629,2]
[338838701,1726935055946,-417.003662,0.0001629,2]
[338838703,1726935055956,-417.003663,0.0001629,2]
[338838705,1726935055965,-2213.436559,0.00016295,2]
[338838707,1726935055974,-150.112233,0.000163,2]
[338838709,1726935055984,-150.112233,0.000163,2]
[338838711,1726935055993,-3000.0,0.000163,2]
[338838713,1726935056002,-3000.0,0.0001631,2]
[338838715,1726935056012,-3000.0,0.0001632,2]
[338838717,1726935056021,-153.0,0.00016325,2]
[338838719,1726935056030,-153.0,0.00016325,2]
[338838721,1726935056039,-153.0,0.00016325,2]
[338838723,1726935056049,-153.0,0.00016325,2]
[338838725,1726935056058,-3000.0,0.0001633,2]
[338838727,1726935056068,-3000.0,0.0001634,2]
[338838729,1726935056077,-3000.0,0.0001635,2]
[338838731,1726935056086,-3000.0,0.0001636,2]
[338838733,1726935056096,-3000.0,0.0001637,2]
[338838735,1726935056105,-2360.01413998,0.0001638,2]
[338842498,1726935241825,177.254299,0.00013699,2]
[338842500,1726935303856,166.666666,0.00011781,2]
[338842509,1726935847914,159.56,0.00014014,2]
[338842512,1726935937092,166.666666,0.00011781,2]
[338842518,1726936065807,500.0,0.00022,120]
[338842608,1726936238345,-300.0,0.00014278,2]
[338842609,1726936238355,-300.0,0.00014278,2]
[338842610,1726936238364,-500.0,0.00014279,2]
[338842611,1726936238374,-500.0,0.00014279,2]
[338842612,1726936238383,-500.0,0.00014279,2]
[338842613,1726936238392,-500.0,0.00014279,2]
[338842614,1726936238402,-500.0,0.00014279,2]
[338842615,1726936238411,-500.0,0.00014279,2]
[338842616,1726936238421,-500.0,0.00014279,2]
[338842617,1726936238430,-8452.67,0.00014279,2]
[338842618,1726936238438,-500.0,0.00014279,2]
[338842619,1726936238447,-1267.61,0.00014279,2]
[338842620,1726936238456,-500.0,0.00014279,2]
[338842621,1726936238466,-500.0,0.00014279,2]
[338842622,1726936238476,-500.0,0.00014279,2]
[338842623,1726936238485,-507.33251565,0.00014279,2]
[338842624,1726936238495,-500.0,0.00014279,2]
[338842625,1726936238505,-500.0,0.00014279,2]
[338842626,1726936238514,-500.0,0.0001428,2]
[338842627,1726936238523,-500.0,0.0001428,2]
[338842628,1726936238532,-500.0,0.0001428,2]
[338842629,1726936238541,-500.0,0.0001428,2]
[338842630,1726936238551,-500.0,0.0001428,2]
[338842631,1726936238561,-500.0,0.0001428,2]
[338842632,1726936238570,-500.0,0.0001428,2]
[338842633,1726936238579,-315.30015793,0.0001428,2]
[338842634,1726936238589,-500.0,0.0001428,2]
[338842635,1726936238599,-500.0,0.0001428,2]
[338842636,1726936238608,-500.0,0.0001428,2]
[338842637,1726936238618,-367.7667251,0.0001428,2]
[338842638,1726936238627,-500.0,0.0001428,2]
[338842639,1726936238638,-500.0,0.0001428,2]
[338842640,1726936238647,-500.0,0.0001428,2]
[338842641,1726936238657,-500.0,0.0001428,2]
[338842642,1726936238666,-500.0,0.0001428,2]
[338842643,1726936238676,-500.0,0.0001428,2]
[338842644,1726936238685,-500.0,0.0001428,2]
[338842645,1726936238695,-500.0,0.0001428,2]
[338842646,1726936238704,-500.0,0.0001428,2]
[338842647,1726936238714,-500.0,0.0001428,2]
[338842648,1726936238724,-502.50259892,0.0001428,2]
[338842649,1726936238734,-500.0,0.0001428,2]
[338842650,1726936238750,-629.44713776,0.0001428,2]
[338842651,1726936238760,-500.0,0.0001428,2]
[338842652,1726936238770,-500.0,0.0001428,2]
[338842653,1726936238779,-500.0,0.0001428,2]
[338842654,1726936238789,-500.0,0.0001428,2]
[338842655,1726936238798,-500.0,0.0001428,2]
[338842656,1726936238807,-500.0,0.0001428,2]
[338842657,1726936238817,-500.0,0.0001428,2]
[338842658,1726936238827,-500.0,0.0001428,2]
[338842659,1726936238837,-500.0,0.0001428,2]
[338842660,1726936238846,-500.0,0.0001428,2]
[338842661,1726936238856,-500.0,0.0001428,2]
[338842662,1726936238866,-369.28582821,0.0001428,2]
[338842663,1726936238876,-540.81,0.0001428,2]
[338842664,1726936238885,-500.0,0.0001428,2]
[338842665,1726936238895,-500.0,0.0001428,2]
[338842666,1726936238905,-500.0,0.0001428,2]
[338842667,1726936238914,-500.0,0.0001428,2]
[338842668,1726936238924,-500.0,0.0001428,2]
[338842669,1726936238934,-659.01,0.0001428,2]
[338842670,1726936238944,-200.73,0.0001428,2]
[338842671,1726936238954,-500.0,0.0001428,2]
[338842672,1726936238964,-500.0,0.0001428,2]
[338842673,1726936238973,-500.0,0.0001428,2]
[338842674,1726936238983,-599.25245421,0.0001428,2]
[338842675,1726936238993,-500.0,0.0001428,2]
[338842676,1726936239002,-500.0,0.0001428,2]
[338842677,1726936239012,-500.0,0.0001428,2]
[338842678,1726936239023,-500.0,0.0001428,2]
[338842679,1726936239032,-508.43863048,0.0001428,2]
[338842680,1726936239042,-500.0,0.0001428,2]
[338842681,1726936239051,-500.0,0.0001428,2]
[338842682,1726936239060,-541.4,0.0001428,2]
[338842683,1726936239070,-500.0,0.0001428,2]
[338842684,1726936239080,-526.93644193,0.0001428,2]
[338842685,1726936239089,-227.93495992,0.0001428,2]
[338842686,1726936239099,-500.0,0.0001428,2]
[338842687,1726936239108,-500.0,0.0001428,2]
[338842688,1726936239117,-500.0,0.0001428,2]
[338842689,1726936239127,-500.0,0.0001428,2]
[338842690,1726936239137,-500.0,0.0001428,2]
[338842691,1726936239146,-500.0,0.0001428,2]
[338842692,1726936239156,-500.0,0.0001428,2]
[338842693,1726936239166,-345.15712558,0.0001428,2]
[338842694,1726936239175,-500.0,0.0001428,2]
[338842695,1726936239184,-500.0,0.0001428,2]
[338842696,1726936239194,-500.0,0.0001428,2]
[338842697,1726936239203,-500.0,0.0001428,2]
[338842698,1726936239213,-331.97641536,0.0001428,2]
[338842699,1726936239223,-500.0,0.0001428,2]
[338842700,1726936239232,-500.0,0.0001428,2]
[338842701,1726936239242,-500.0,0.0001428,2]
[338842702,1726936239252,-500.0,0.0001428,2]
[338842703,1726936239261,-500.0,0.0001428,2]
[338842704,1726936239271,-200.0,0.0001428,2]
[338842705,1726936239281,-500.0,0.0001428,2]
[338842706,1726936239291,-500.0,0.0001428,2]
[338842707,1726936239300,-33262.8040957,0.00014281,2]
[338842708,1726936239309,-34692.4119159,0.00014281,2]
[338842709,1726936239319,-500.0,0.00014281,2]
[338842710,1726936239331,-500.0,0.00014281,2]
[338842711,1726936239341,-500.0,0.00014281,2]
[338842712,1726936239351,-500.0,0.00014281,2]
[338842713,1726936239360,-500.0,0.00014281,2]
[338842714,1726936239370,-500.0,0.00014281,2]
[338842715,1726936239379,-500.0,0.00014281,2]
[338842716,1726936239388,-500.0,0.00014281,2]
[338842717,1726936239397,-500.0,0.00014281,2]
[338842718,1726936239407,-500.0,0.00014281,2]
[338842719,1726936239416,-500.0,0.00014281,2]
[338842720,1726936239425,-500.0,0.00014281,2]
[338842721,1726936239434,-500.0,0.00014281,2]
[338842722,1726936239443,-500.0,0.00014281,2]
[338842723,1726936239453,-500.0,0.00014281,2]
[338842724,1726936239462,-500.0,0.00014281,2]
[338842725,1726936239472,-358.67550349,0.00014281,2]
[338842726,1726936239482,-500.0,0.00014281,2]
[338842727,1726936239493,-500.0,0.00014281,2]
[338842728,1726936239502,-500.0,0.00014281,2]
[338842729,1726936239512,-500.0,0.00014281,2]
[338842730,1726936239521,-500.0,0.00014281,2]
[338842731,1726936239530,-500.0,0.00014281,2]
[338842732,1726936239540,-500.0,0.00014281,2]
[338842733,1726936239549,-509.13836696,0.00014281,2]
[338842734,1726936239559,-500.0,0.00014281,2]
[338842736,1726936239568,-501.53192964,0.00014281,2]
[338842737,1726936239578,-243.75288641,0.00014281,2]
[338842738,1726936239587,-500.0,0.00014281,2]
[338842739,1726936239596,-500.0,0.00014281,2]
[338842740,1726936239605,-500.0,0.00014281,2]
[338842741,1726936239615,-500.0,0.00014281,2]
[338842742,1726936239624,-500.0,0.00014281,2]
[338842743,1726936239634,-500.94199245,0.00014281,2]
[338842744,1726936239643,-500.0,0.00014281,2]
[338842745,1726936239652,-338.54036167,0.00014281,2]
[338842746,1726936239661,-500.0,0.00014281,2]
[338842747,1726936239671,-500.0,0.00014281,2]
[338842748,1726936239680,-500.0,0.00014281,2]
[338842749,1726936239689,-500.0,0.00014281,2]
[338842751,1726936239699,-500.0,0.00014281,2]
[338842754,1726936239708,-505.22680742,0.00014281,2]
[338842756,1726936239717,-500.0,0.00014281,2]
[338842758,1726936239727,-500.0,0.00014281,2]
[338842760,1726936239738,-500.0,0.00014281,2]
[338842761,1726936239747,-500.0,0.00014281,2]
[338842762,1726936239757,-500.0,0.00014281,2]
[338842763,1726936239767,-500.0,0.00014281,2]
[338842764,1726936239776,-500.0,0.00014281,2]
[338842765,1726936239785,-500.0,0.00014281,2]
[338842766,1726936239795,-500.0,0.00014281,2]
[338842768,1726936239806,-500.0,0.00014281,2]
[338842770,1726936239815,-500.0,0.00014281,2]
[338842772,1726936239825,-500.0,0.00014281,2]
[338842774,1726936239835,-500.0,0.00014281,2]
[338842775,1726936239844,-500.0,0.00014281,2]
[338842777,1726936239853,-500.0,0.00014281,2]
[338842779,1726936239863,-500.0,0.00014281,2]
[338842781,1726936239872,-578.2,0.00014281,2]
[338842783,1726936239881,-500.0,0.00014281,2]
[338842784,1726936239891,-500.0,0.00014281,2]
[338842786,1726936239902,-500.0,0.00014281,2]
[338842787,1726936239912,-500.0,0.00014281,2]
[338842788,1726936239922,-500.0,0.00014281,2]
[338842789,1726936239931,-500.0,0.00014281,2]
[338842790,1726936239941,-500.0,0.00014281,2]
[338842791,1726936239951,-500.0,0.00014281,2]
[338842792,1726936239960,-614.11,0.00014281,2]
[338842793,1726936239970,-500.0,0.00014281,2]
[338842794,1726936239979,-500.0,0.00014281,2]
[338842796,1726936239989,-500.0,0.00014281,2]
[338842798,1726936239998,-247.28098613,0.00014281,2]
[338842800,1726936240007,-500.0,0.00014281,2]
[338842802,1726936240016,-500.0,0.00014281,2]
[338842803,1726936240025,-500.0,0.00014281,2]
[338842804,1726936240034,-500.0,0.00014281,2]
[338842805,1726936240043,-606.17,0.00014281,2]
[338842806,1726936240053,-500.0,0.00014281,2]
[338842807,1726936240063,-500.0,0.00014281,2]
[338842808,1726936240073,-500.0,0.00014281,2]
[338842809,1726936240083,-500.0,0.00014281,2]
[338842810,1726936240093,-500.0,0.00014281,2]
[338842811,1726936240102,-500.0,0.00014281,2]
[338842812,1726936240112,-172.81306322,0.00014281,2]
[338842813,1726936240122,-500.0,0.00014281,2]
[338842814,1726936240132,-500.0,0.00014281,2]
[338842815,1726936240141,-500.0,0.00014281,2]
[338842816,1726936240151,-500.0,0.00014281,2]
[338842817,1726936240161,-500.0,0.00014281,2]
[338842818,1726936240171,-500.0,0.00014281,2]
[338842819,1726936240181,-500.0,0.00014281,2]
[338842820,1726936240191,-500.0,0.00014281,2]
[338842821,1726936240200,-197.15480101,0.00014281,2]
[338842822,1726936240210,-500.0,0.00014281,2]
[338842824,1726936240220,-500.0,0.00014281,2]
[338842826,1726936240230,-500.0,0.00014281,2]
[338842828,1726936240240,-514.06724973,0.00014281,2]
[338842830,1726936240249,-500.0,0.00014281,2]
[338842832,1726936240259,-500.0,0.00014281,2]
[338842834,1726936240268,-500.0,0.00014281,2]
[338842835,1726936240277,-500.0,0.00014281,2]
[338842836,1726936240287,-500.0,0.00014281,2]
[338842837,1726936240297,-500.0,0.00014281,2]
[338842838,1726936240306,-500.0,0.00014281,2]
[338842839,1726936240315,-500.0,0.00014281,2]
[338842840,1726936240325,-269.4471669,0.00014281,2]
[338842841,1726936240338,-500.0,0.00014281,2]
[338842842,1726936240348,-500.0,0.00014281,2]
[338842843,1726936240358,-500.0,0.00014281,2]
[338842844,1726936240367,-500.0,0.00014281,2]
[338842845,1726936240379,-500.0,0.00014281,2]
[338842846,1726936240389,-500.0,0.00014281,2]
[338842847,1726936240398,-500.0,0.00014281,2]
[338842848,1726936240408,-500.0,0.00014281,2]
[338842849,1726936240418,-626.86672932,0.00014281,2]
[338842850,1726936240427,-671.85,0.00014281,2]
[338842851,1726936240436,-500.0,0.00014281,2]
[338842852,1726936240445,-500.0,0.00014281,2]
[338842853,1726936240455,-356.92604221,0.00014281,2]
[338842854,1726936240465,-500.0,0.00014281,2]
[338842855,1726936240475,-500.0,0.00014281,2]
[338842856,1726936240484,-500.0,0.00014281,2]
[338842857,1726936240494,-627.86952505,0.00014281,2]
[338842858,1726936240504,-500.0,0.00014281,2]
[338842859,1726936240514,-500.0,0.00014281,2]
[338842860,1726936240524,-500.0,0.00014281,2]
[338842861,1726936240534,-500.0,0.00014281,2]
[338842862,1726936240544,-500.0,0.00014281,2]
[338842863,1726936240555,-500.0,0.00014281,2]
[338842864,1726936240564,-500.0,0.00014281,2]
[338842865,1726936240574,-530.30953794,0.00014281,2]
[338842866,1726936240584,-176.49,0.00014281,2]
[338842867,1726936240594,-501.60560376,0.00014281,2]
[338842868,1726936240604,-500.0,0.00014281,2]
[338842869,1726936240613,-500.0,0.00014281,2]
[338842870,1726936240622,-500.0,0.00014281,2]
[338842871,1726936240632,-447.04252525,0.00014281,2]
[338842872,1726936240641,-500.0,0.00014281,2]
[338842873,1726936240650,-500.0,0.00014281,2]
[338842874,1726936240660,-500.0,0.00014282,2]
[338842875,1726936240827,-384.53031725,0.00014282,2]
[338842876,1726936240842,-500.0,0.00014291,2]
[338842877,1726936240852,-500.0,0.00014291,2]
[338842878,1726936240862,-500.0,0.00014291,2]
[338842879,1726936240871,-500.0,0.00014291,2]
[338842880,1726936240881,-500.0,0.00014291,2]
[338842881,1726936240891,-500.0,0.00014291,2]
[338842882,1726936240900,-500.0,0.00014291,2]
[338842883,1726936240910,-501.62630862,0.00014291,2]
[338842884,1726936240919,-500.0,0.00014291,2]
[338842885,1726936240928,-500.0,0.00014291,2]
[338842886,1726936240938,-500.0,0.00014291,2]
[338842887,1726936240948,-500.0,0.00014291,2]
[338842888,1726936240957,-500.0,0.00014291,2]
[338842889,1726936240967,-500.37096772,0.00014291,2]
[338842890,1726936240976,-178.33761139,0.00014453,2]
[338842891,1726936240986,-33262.8040957,0.00014535,2]
[338842892,1726936240997,-34692.4119159,0.00014535,2]
[338842893,1726936241005,-33262.8040957,0.00014545,2]
[338842894,1726936241015,-34692.4119159,0.00014545,2]
[338842895,1726936241024,-500.0,0.00014553,2]
[338842896,1726936241034,-500.0,0.00014553,2]
[338842897,1726936241044,-500.0,0.00014553,2]
[338842898,1726936241054,-500.0,0.00014553,2]
[338842899,1726936241063,-500.0,0.00014553,2]
[338842900,1726936241073,-6272.93500015,0.00014553,2]
[338842901,1726936241234,-2179.73499985,0.00014553,2]
[338842902,1726936241244,-198.11,0.00014553,2]
[338842903,1726936241253,-1267.61,0.00014553,2]
[338842904,1726936241263,-500.0,0.00014554,2]
[338842905,1726936241272,-500.0,0.00014554,2]
[338842906,1726936241281,-500.0,0.00014554,2]
[338842907,1726936241291,-500.0,0.00014554,2]
[338842908,1726936241300,-500.0,0.00014554,2]
[338842909,1726936241310,-314.37,0.00014554,2]
[338842910,1726936241320,-500.0,0.00014554,2]